[Event "Late-Titled-Tuesday-Blitz-October-10-2023"]
[Site "Chess.com"]
[Date "2023.10.10"]
[Round "2"]
[White "Mykola-Bortnyk"]
[Black "hakanazeri2"]
[Result "1/2-1/2"]
[WhiteElo "2954"]
[BlackElo "2611"]
[TimeControl "180+1"]
[EndTime "14:18:33 PDT"]
[Termination "Game drawn - insufficient material"]

1. e4 {[%clk 0:02:54.3]} 1... c5 {[%clk 0:02:44.7]} 2. c3 {[%clk 0:02:52.4]}
2... Nf6 {[%clk 0:02:40.4]} 3. e5 {[%clk 0:02:52.9]} 3... Nd5 {[%clk 0:02:40.3]}
4. Bc4 {[%clk 0:02:53.6]} 4... Nb6 {[%clk 0:02:40.4]} 5. Bb3 {[%clk 0:02:53.9]}
5... e6 {[%clk 0:02:40.5]} 6. d4 {[%clk 0:02:50]} 6... d5 {[%clk 0:02:28]} 7. h4
{[%clk 0:02:40.5]} 7... Nc6 {[%clk 0:02:26.2]} 8. h5 {[%clk 0:02:39.6]} 8... h6
{[%clk 0:02:25.3]} 9. Be3 {[%clk 0:02:30.7]} 9... Bd7 {[%clk 0:02:23.1]} 10. Nd2
{[%clk 0:02:26.6]} 10... cxd4 {[%clk 0:02:20]} 11. cxd4 {[%clk 0:02:26.8]} 11...
Na5 {[%clk 0:02:20.6]} 12. Qg4 {[%clk 0:02:22.6]} 12... Nac4 {[%clk 0:02:09.4]}
13. Rb1 {[%clk 0:02:01]} 13... Nxe3 {[%clk 0:01:48]} 14. fxe3 {[%clk 0:02:01.9]}
14... Qg5 {[%clk 0:01:48.5]} 15. Qxg5 {[%clk 0:01:58.1]} 15... hxg5 {[%clk
0:01:49.4]} 16. Rc1 {[%clk 0:01:58.7]} 16... g6 {[%clk 0:01:46.3]} 17. g4 {[%clk
0:01:55.6]} 17... gxh5 {[%clk 0:01:41.4]} 18. gxh5 {[%clk 0:01:55.9]} 18... Bh6
{[%clk 0:01:41.5]} 19. Bd1 {[%clk 0:01:51.3]} 19... Ke7 {[%clk 0:01:41.4]} 20.
Bg4 {[%clk 0:01:50.8]} 20... Rac8 {[%clk 0:01:40.6]} 21. Ne2 {[%clk 0:01:51.5]}
21... Bg7 {[%clk 0:01:33.4]} 22. Nf3 {[%clk 0:01:39.9]} 22... f5 {[%clk
0:01:30.9]} 23. exf6+ {[%clk 0:01:39.5]} 23... Bxf6 {[%clk 0:01:30.7]} 24. b3
{[%clk 0:01:35.2]} 24... Bc6 {[%clk 0:01:21.9]} 25. Kf2 {[%clk 0:01:29.6]} 25...
Nd7 {[%clk 0:01:21.7]} 26. h6 {[%clk 0:01:24.7]} 26... Rcf8 {[%clk 0:01:20]} 27.
Kg2 {[%clk 0:01:19.9]} 27... e5 {[%clk 0:01:15.7]} 28. Bxd7 {[%clk 0:01:16.8]}
28... Kxd7 {[%clk 0:01:12.8]} 29. dxe5 {[%clk 0:01:15.6]} 29... d4 {[%clk
0:00:54.2]} 30. Rxc6 {[%clk 0:01:06.9]} 30... bxc6 {[%clk 0:00:52.6]} 31. exf6
{[%clk 0:01:04.7]} 31... d3 {[%clk 0:00:53]} 32. Rd1 {[%clk 0:00:52.1]} 32...
Rxf6 {[%clk 0:00:52.4]} 33. Rxd3+ {[%clk 0:00:52.2]} 33... Kc7 {[%clk
0:00:51.2]} 34. Ng3 {[%clk 0:00:39.2]} 34... Rfxh6 {[%clk 0:00:48.7]} 35. Nxg5
{[%clk 0:00:37.8]} 35... Rh2+ {[%clk 0:00:48.4]} 36. Kf3 {[%clk 0:00:38.5]}
36... Rxa2 {[%clk 0:00:41.7]} 37. Ne6+ {[%clk 0:00:37]} 37... Kb6 {[%clk
0:00:41.9]} 38. e4 {[%clk 0:00:36.6]} 38... a5 {[%clk 0:00:40.1]} 39. Nd4 {[%clk
0:00:28.4]} 39... Rd8 {[%clk 0:00:35.7]} 40. Ke3 {[%clk 0:00:22.8]} 40... Rb2
{[%clk 0:00:33.5]} 41. Rc3 {[%clk 0:00:18.9]} 41... c5 {[%clk 0:00:32.6]} 42.
Nf3 {[%clk 0:00:16.5]} 42... Kb5 {[%clk 0:00:28.1]} 43. e5 {[%clk 0:00:16]}
43... Kb4 {[%clk 0:00:28.1]} 44. Rc4+ {[%clk 0:00:16.7]} 44... Kb5 {[%clk
0:00:28.3]} 45. Rc3 {[%clk 0:00:17.4]} 45... Kb4 {[%clk 0:00:28.3]} 46. Ne4
{[%clk 0:00:18.1]} 46... Rxb3 {[%clk 0:00:24.6]} 47. Rxb3+ {[%clk 0:00:17.7]}
47... Kxb3 {[%clk 0:00:25.5]} 48. Nxc5+ {[%clk 0:00:18.5]} 48... Kc4 {[%clk
0:00:24.7]} 49. Nb7 {[%clk 0:00:15.3]} 49... Ra8 {[%clk 0:00:18.4]} 50. e6
{[%clk 0:00:13.5]} 50... Kd5 {[%clk 0:00:15]} 51. Ng5 {[%clk 0:00:10.2]} 51...
Ke5 {[%clk 0:00:09.3]} 52. e7 {[%clk 0:00:06.3]} 52... Kf6 {[%clk 0:00:09.3]}
53. Ne4+ {[%clk 0:00:03.6]} 53... Kxe7 {[%clk 0:00:09.8]} 54. Nbc5 {[%clk
0:00:04.4]} 54... a4 {[%clk 0:00:09.1]} 55. Nc3 {[%clk 0:00:04.7]} 55... a3
{[%clk 0:00:08.9]} 56. Na2 {[%clk 0:00:04.8]} 56... Kd6 {[%clk 0:00:09.3]} 57.
Kd4 {[%clk 0:00:04.4]} 57... Rh8 {[%clk 0:00:08.7]} 58. Ne4+ {[%clk 0:00:04.6]}
58... Kc6 {[%clk 0:00:09]} 59. Nec3 {[%clk 0:00:04.7]} 59... Rh4+ {[%clk
0:00:08.9]} 60. Kd3 {[%clk 0:00:05]} 60... Kc5 {[%clk 0:00:09.2]} 61. Ne4+
{[%clk 0:00:05.3]} 61... Kb5 {[%clk 0:00:09.4]} 62. Nec3+ {[%clk 0:00:06.2]}
62... Ka5 {[%clk 0:00:09.5]} 63. Kc2 {[%clk 0:00:06]} 63... Rh2+ {[%clk
0:00:02.3]} 64. Kb3 {[%clk 0:00:06.9]} 64... Rxa2 {[%clk 0:00:02.6]} 65. Nxa2
{[%clk 0:00:06.5]} 65... Kb6 {[%clk 0:00:02.4]} 66. Kxa3 {[%clk 0:00:07.4]}
1/2-1/2

[Event "Late-Titled-Tuesday-Blitz-October-10-2023"]
[Site "Chess.com"]
[Date "2023.10.10"]
[Round "2"]
[White "traack"]
[Black "Blackwhite017"]
[Result "0-1"]
[WhiteElo "2404"]
[BlackElo "2036"]
[TimeControl "180+1"]
[EndTime "14:18:50 PDT"]
[Termination "Blackwhite017 won by resignation"]

1. e4 {[%clk 0:02:57.5]} 1... c5 {[%clk 0:02:59.2]} 2. Nf3 {[%clk 0:02:56.9]}
2... d6 {[%clk 0:02:59.1]} 3. d4 {[%clk 0:02:57.5]} 3... cxd4 {[%clk 0:03:00]}
4. Nxd4 {[%clk 0:02:57.3]} 4... Nf6 {[%clk 0:03:00.4]} 5. Nc3 {[%clk 0:02:57.6]}
5... g6 {[%clk 0:03:00.6]} 6. Be3 {[%clk 0:02:51.2]} 6... Bg7 {[%clk 0:03:00.2]}
7. f3 {[%clk 0:02:45.9]} 7... O-O {[%clk 0:02:59.9]} 8. Qd2 {[%clk 0:02:45.8]}
8... Nc6 {[%clk 0:02:59.8]} 9. O-O-O {[%clk 0:02:45.5]} 9... Nxd4 {[%clk
0:03:00]} 10. Bxd4 {[%clk 0:02:41.8]} 10... Be6 {[%clk 0:03:00.2]} 11. Kb1
{[%clk 0:02:41]} 11... Qa5 {[%clk 0:02:59.7]} 12. g4 {[%clk 0:02:38.7]} 12...
Rfc8 {[%clk 0:02:57.5]} 13. a3 {[%clk 0:02:36.8]} 13... Rab8 {[%clk 0:02:55.8]}
14. h4 {[%clk 0:02:35.8]} 14... b5 {[%clk 0:02:55.2]} 15. h5 {[%clk 0:02:36.2]}
15... b4 {[%clk 0:02:53.5]} 16. axb4 {[%clk 0:02:35.4]} 16... Rxb4 {[%clk
0:02:37.9]} 17. hxg6 {[%clk 0:02:19.4]} 17... fxg6 {[%clk 0:02:23.4]} 18. g5
{[%clk 0:02:16.5]} 18... Rxd4 {[%clk 0:01:59.3]} 19. Qxd4 {[%clk 0:02:13.7]}
19... Nd5 {[%clk 0:01:50]} 20. Qxg7+ {[%clk 0:01:52.9]} 20... Kxg7 {[%clk
0:01:47.6]} 21. exd5 {[%clk 0:01:52]} 21... Bf5 {[%clk 0:01:42.7]} 22. Bd3
{[%clk 0:01:50.7]} 22... Bxd3 {[%clk 0:01:38.7]} 23. Rxd3 {[%clk 0:01:50.5]}
23... Rb8 {[%clk 0:01:34.2]} 24. Re1 {[%clk 0:01:48]} 24... Rb7 {[%clk
0:01:31.9]} 25. Rde3 {[%clk 0:01:43.7]} 25... Kf8 {[%clk 0:01:27.8]} 26. Rh1
{[%clk 0:01:40.2]} 26... Qb4 {[%clk 0:01:24.8]} 27. Nd1 {[%clk 0:01:38.8]} 27...
Qd4 {[%clk 0:01:18.8]} 28. Rd3 {[%clk 0:01:36]} 28... Qg7 {[%clk 0:01:08.6]} 29.
f4 {[%clk 0:01:34.9]} 29... Qf7 {[%clk 0:01:01.4]} 30. Rd2 {[%clk 0:01:26.7]}
30... Rb4 {[%clk 0:00:59]} 31. Rf1 {[%clk 0:01:24.6]} 31... Ke8 {[%clk
0:00:49.2]} 32. f5 {[%clk 0:01:12.9]} 32... gxf5 {[%clk 0:00:48]} 33. c3 {[%clk
0:01:13.8]} 33... Rg4 {[%clk 0:00:47.2]} 34. Ne3 {[%clk 0:01:13.7]} 34... Rxg5
{[%clk 0:00:45.6]} 35. Rdf2 {[%clk 0:01:13.4]} 35... Qg6 {[%clk 0:00:39.4]} 36.
Nxf5 {[%clk 0:01:08.1]} 36... Rg1 {[%clk 0:00:32.3]} 37. Ka2 {[%clk 0:01:03.1]}
37... Rxf1 {[%clk 0:00:32.3]} 38. Rxf1 {[%clk 0:01:04]} 38... Qg2 {[%clk
0:00:29.3]} 39. Rd1 {[%clk 0:00:48.1]} 39... Qg4 {[%clk 0:00:22.2]} 40. Rf1
{[%clk 0:00:45.1]} 40... Qe2 {[%clk 0:00:13.7]} 41. Ng7+ {[%clk 0:00:43.8]}
41... Kd7 {[%clk 0:00:13.1]} 42. Rf4 {[%clk 0:00:44.7]} 42... Qa6+ {[%clk
0:00:08.9]} 43. Kb3 {[%clk 0:00:43.3]} 43... Qb5+ {[%clk 0:00:08.6]} 44. Kc2
{[%clk 0:00:41]} 44... Qxd5 {[%clk 0:00:08.4]} 45. Nf5 {[%clk 0:00:35.1]} 45...
Qg2+ {[%clk 0:00:08.5]} 46. Kb3 {[%clk 0:00:34.5]} 46... Qb7+ {[%clk 0:00:08.7]}
47. Kc2 {[%clk 0:00:34.9]} 47... Qg2+ {[%clk 0:00:06.3]} 48. Kb3 {[%clk
0:00:33.9]} 48... Qg5 {[%clk 0:00:05.3]} 49. Rf2 {[%clk 0:00:30.1]} 49... e6
{[%clk 0:00:05.4]} 50. Nd4 {[%clk 0:00:30.3]} 50... Qg3 {[%clk 0:00:04.3]} 51.
Rf7+ {[%clk 0:00:30.8]} 51... Kd8 {[%clk 0:00:03.9]} 52. Nxe6+ {[%clk
0:00:30.9]} 52... Ke8 {[%clk 0:00:03.1]} 53. Rxh7 {[%clk 0:00:29.6]} 53... Qg6
{[%clk 0:00:01.8]} 54. Nc7+ {[%clk 0:00:29]} 54... Kd8 {[%clk 0:00:01.7]} 55.
Rh8+ {[%clk 0:00:18.6]} 55... Kxc7 {[%clk 0:00:01.7]} 56. Ra8 {[%clk 0:00:17.9]}
56... Kc6 {[%clk 0:00:02.6]} 57. Rxa7 {[%clk 0:00:17.5]} 57... Qe4 {[%clk
0:00:02.2]} 58. Ra6+ {[%clk 0:00:18]} 58... Kd7 {[%clk 0:00:02.4]} 59. Ra4
{[%clk 0:00:18.9]} 59... Qb7+ {[%clk 0:00:02.6]} 60. Ka3 {[%clk 0:00:19.8]}
60... Ke6 {[%clk 0:00:02.1]} 61. Rb4 {[%clk 0:00:20.7]} 61... Qd5 {[%clk
0:00:02.2]} 62. c4 {[%clk 0:00:20.1]} 62... Qa5+ {[%clk 0:00:02.2]} 63. Kb3
{[%clk 0:00:20.3]} 63... Qc5 {[%clk 0:00:02.4]} 64. Kc3 {[%clk 0:00:21.2]} 64...
d5 {[%clk 0:00:02.5]} 65. b3 {[%clk 0:00:20.5]} 65... d4+ {[%clk 0:00:03]} 66.
Kd3 {[%clk 0:00:19.3]} 66... Qxb4 {[%clk 0:00:03.5]} 67. Kxd4 {[%clk 0:00:19.9]}
67... Qxb3 {[%clk 0:00:03.9]} 68. c5 {[%clk 0:00:20.8]} 68... Kd7 {[%clk
0:00:04.4]} 69. c6+ {[%clk 0:00:21.7]} 69... Kc7 {[%clk 0:00:04.7]} 0-1

[Event "Late-Titled-Tuesday-Blitz-October-10-2023"]
[Site "Chess.com"]
[Date "2023.10.10"]
[Round "2"]
[White "Arimin1329"]
[Black "Smiechu"]
[Result "0-1"]
[WhiteElo "2268"]
[BlackElo "2509"]
[TimeControl "180+1"]
[EndTime "14:18:54 PDT"]
[Termination "Smiechu won by resignation"]

1. Nf3 {[%clk 0:02:59.4]} 1... Nf6 {[%clk 0:02:59.4]} 2. g3 {[%clk 0:02:59.3]}
2... c5 {[%clk 0:02:59.5]} 3. Bg2 {[%clk 0:02:59.3]} 3... Nc6 {[%clk 0:03:00.2]}
4. O-O {[%clk 0:02:58.9]} 4... g6 {[%clk 0:03:00.8]} 5. c3 {[%clk 0:02:59]} 5...
Bg7 {[%clk 0:03:01.3]} 6. d4 {[%clk 0:02:59.6]} 6... cxd4 {[%clk 0:03:01.6]} 7.
cxd4 {[%clk 0:03:00.5]} 7... d5 {[%clk 0:03:01.1]} 8. Nc3 {[%clk 0:03:00.6]}
8... O-O {[%clk 0:03:01.1]} 9. Qb3 {[%clk 0:02:55.9]} 9... e6 {[%clk 0:02:58.8]}
10. e3 {[%clk 0:02:54.5]} 10... b6 {[%clk 0:02:50.2]} 11. Bd2 {[%clk 0:02:50.6]}
11... Ba6 {[%clk 0:02:48.8]} 12. Rfc1 {[%clk 0:02:48.4]} 12... Rc8 {[%clk
0:02:43.1]} 13. Qa3 {[%clk 0:02:33.1]} 13... Bb7 {[%clk 0:02:41.3]} 14. Nb5
{[%clk 0:02:31.4]} 14... Ne4 {[%clk 0:02:23.1]} 15. Nxa7 {[%clk 0:02:20.8]}
15... Nxa7 {[%clk 0:01:56.5]} 16. Qxa7 {[%clk 0:02:21.7]} 16... Bc6 {[%clk
0:01:33.8]} 17. Qa3 {[%clk 0:02:07.5]} 17... Nxd2 {[%clk 0:01:32.2]} 18. Nxd2
{[%clk 0:02:03.9]} 18... Qd7 {[%clk 0:01:32.4]} 19. Qb4 {[%clk 0:01:58.5]} 19...
Rb8 {[%clk 0:01:29.1]} 20. Rc2 {[%clk 0:01:53.5]} 20... Rfc8 {[%clk 0:01:22.8]}
21. Nf3 {[%clk 0:01:48]} 21... Bf8 {[%clk 0:01:21.5]} 22. Qd2 {[%clk 0:01:46.9]}
22... Ba4 {[%clk 0:01:20.2]} 23. Rxc8 {[%clk 0:01:43.6]} 23... Rxc8 {[%clk
0:01:19.9]} 24. b3 {[%clk 0:01:43]} 24... Bb5 {[%clk 0:01:18.2]} 25. a4 {[%clk
0:01:35.7]} 25... Ba6 {[%clk 0:01:16.4]} 26. Rc1 {[%clk 0:01:35.1]} 26... Bd6
{[%clk 0:01:00.8]} 27. Bf1 {[%clk 0:01:31.9]} 27... Bxf1 {[%clk 0:00:59.3]} 28.
Kxf1 {[%clk 0:01:32.8]} 28... Rc6 {[%clk 0:00:53.6]} 29. Kg2 {[%clk 0:01:24.7]}
29... Bb4 {[%clk 0:00:46.7]} 30. Qd1 {[%clk 0:01:22]} 30... Qc7 {[%clk
0:00:45.3]} 31. Rxc6 {[%clk 0:01:20.9]} 31... Qxc6 {[%clk 0:00:45.4]} 32. Ne5
{[%clk 0:01:20.8]} 32... Qc3 {[%clk 0:00:43.6]} 33. Qd3 {[%clk 0:01:18.2]} 33...
Qc7 {[%clk 0:00:33.9]} 34. Qb5 {[%clk 0:01:14.4]} 34... Bd6 {[%clk 0:00:33.8]}
35. Qe8+ {[%clk 0:01:04.2]} 35... Kg7 {[%clk 0:00:33.6]} 36. Nd3 {[%clk
0:00:55.4]} 36... Qc2 {[%clk 0:00:31.3]} 37. Qb5 {[%clk 0:00:53.3]} 37... Qc7
{[%clk 0:00:29.1]} 38. h4 {[%clk 0:00:51.4]} 38... h5 {[%clk 0:00:28.9]} 39. b4
{[%clk 0:00:44.8]} 39... g5 {[%clk 0:00:15.9]} 40. hxg5 {[%clk 0:00:42.7]} 40...
Be7 {[%clk 0:00:16.3]} 41. a5 {[%clk 0:00:38.7]} 41... bxa5 {[%clk 0:00:16.4]}
42. bxa5 {[%clk 0:00:39.1]} 42... Bxg5 {[%clk 0:00:15.1]} 43. a6 {[%clk
0:00:37.9]} 43... h4 {[%clk 0:00:15.5]} 44. Nc5 {[%clk 0:00:36.1]} 44... hxg3
{[%clk 0:00:15]} 45. Qd7 {[%clk 0:00:33.5]} 45... Qb6 {[%clk 0:00:08.5]} 46. a7
{[%clk 0:00:27.2]} 46... Qb2 {[%clk 0:00:08]} 47. Nxe6+ {[%clk 0:00:26.5]} 47...
Kf6 {[%clk 0:00:07.3]} 48. Kxg3 {[%clk 0:00:20.6]} 48... Bh4+ {[%clk 0:00:06.4]}
49. Kh3 {[%clk 0:00:18.3]} 49... Qxf2 {[%clk 0:00:06]} 50. Qd8+ {[%clk
0:00:18.7]} 50... Kxe6 {[%clk 0:00:05.7]} 51. Qxh4 {[%clk 0:00:19.2]} 51... Qf1+
{[%clk 0:00:04]} 52. Kg3 {[%clk 0:00:18.8]} 52... Qe1+ {[%clk 0:00:04.1]} 53.
Kg4 {[%clk 0:00:19]} 53... Qe2+ {[%clk 0:00:03.6]} 54. Kg5 {[%clk 0:00:18.6]}
54... Qxe3+ {[%clk 0:00:03.8]} 55. Qf4 {[%clk 0:00:18.4]} 55... f6+ {[%clk
0:00:03.9]} 56. Kg4 {[%clk 0:00:18.3]} 56... Qg1+ {[%clk 0:00:03.8]} 57. Kh4
{[%clk 0:00:17]} 57... Qh1+ {[%clk 0:00:03.5]} 58. Kg3 {[%clk 0:00:17]} 58...
Qg1+ {[%clk 0:00:03.9]} 59. Kh4 {[%clk 0:00:17.2]} 59... Qh1+ {[%clk 0:00:04.3]}
60. Kg4 {[%clk 0:00:17.8]} 60... Qg1+ {[%clk 0:00:04.7]} 61. Qg3 {[%clk
0:00:18.4]} 61... Qxd4+ {[%clk 0:00:05.1]} 62. Kh3 {[%clk 0:00:18.1]} 62... Qxa7
{[%clk 0:00:05.6]} 63. Qg4+ {[%clk 0:00:18.4]} 63... Kf7 {[%clk 0:00:05.9]} 64.
Qh5+ {[%clk 0:00:18.3]} 64... Kg7 {[%clk 0:00:06.4]} 65. Qxd5 {[%clk 0:00:18.2]}
65... Qe3+ {[%clk 0:00:05.5]} 66. Kh2 {[%clk 0:00:17.6]} 66... Qf4+ {[%clk
0:00:05.5]} 67. Kh3 {[%clk 0:00:17.7]} 67... Kg6 {[%clk 0:00:06.4]} 68. Qg2+
{[%clk 0:00:17.5]} 68... Kf5 {[%clk 0:00:06]} 69. Qc2+ {[%clk 0:00:18]} 69...
Qe4 {[%clk 0:00:05.9]} 70. Qc8+ {[%clk 0:00:18.6]} 70... Kf4 {[%clk 0:00:05]}
71. Qg4+ {[%clk 0:00:18.8]} 71... Ke5 {[%clk 0:00:05]} 72. Qg3+ {[%clk
0:00:16.9]} 72... Qf4 {[%clk 0:00:04]} 73. Kg2 {[%clk 0:00:17.4]} 73... Qxg3+
{[%clk 0:00:03.2]} 74. Kxg3 {[%clk 0:00:18.1]} 74... Ke4 {[%clk 0:00:03.8]} 75.
Kg2 {[%clk 0:00:17.8]} 75... f5 {[%clk 0:00:03.1]} 76. Kf2 {[%clk 0:00:18.7]}
76... Kf4 {[%clk 0:00:03.4]} 77. Ke2 {[%clk 0:00:19.6]} 77... Kg3 {[%clk
0:00:03.8]} 78. Kf1 {[%clk 0:00:20.2]} 78... Kf3 {[%clk 0:00:04.2]} 79. Kg1
{[%clk 0:00:21.1]} 79... Ke2 {[%clk 0:00:04.4]} 80. Kg2 {[%clk 0:00:21.8]} 80...
f4 {[%clk 0:00:05.1]} 81. Kh3 {[%clk 0:00:22.3]} 81... f3 {[%clk 0:00:06]} 82.
Kg4 {[%clk 0:00:23.2]} 82... f2 {[%clk 0:00:06.6]} 83. Kh3 {[%clk 0:00:24]}
83... f1=Q+ {[%clk 0:00:07.5]} 84. Kg4 {[%clk 0:00:24.9]} 84... Qg2+ {[%clk
0:00:07.5]} 85. Kh4 {[%clk 0:00:25.8]} 85... Ke3 {[%clk 0:00:07.1]} 0-1

[Event "Late-Titled-Tuesday-Blitz-October-10-2023"]
[Site "Chess.com"]
[Date "2023.10.10"]
[Round "2"]
[White "K_A_S_T_O_R"]
[Black "jaskol95"]
[Result "1-0"]
[WhiteElo "2903"]
[BlackElo "2578"]
[TimeControl "180+1"]
[EndTime "14:19:05 PDT"]
[Termination "K_A_S_T_O_R won by resignation"]

1. e4 {[%clk 0:03:00.9]} 1... d5 {[%clk 0:03:00.2]} 2. exd5 {[%clk 0:03:00]}
2... Nf6 {[%clk 0:03:00.9]} 3. d4 {[%clk 0:02:59.5]} 3... Bg4 {[%clk 0:03:01]}
4. Be2 {[%clk 0:02:59.3]} 4... Bxe2 {[%clk 0:03:00.8]} 5. Qxe2 {[%clk
0:02:59.4]} 5... Qxd5 {[%clk 0:03:00.1]} 6. Nf3 {[%clk 0:03:00]} 6... Nc6 {[%clk
0:02:55.8]} 7. c3 {[%clk 0:02:58]} 7... e6 {[%clk 0:02:47.5]} 8. Bf4 {[%clk
0:02:56.8]} 8... Bd6 {[%clk 0:02:39.5]} 9. Bg3 {[%clk 0:02:56]} 9... Bxg3 {[%clk
0:02:36.5]} 10. hxg3 {[%clk 0:02:55.7]} 10... O-O-O {[%clk 0:02:35.6]} 11. Nbd2
{[%clk 0:02:52.5]} 11... Rhe8 {[%clk 0:02:15.7]} 12. Nc4 {[%clk 0:02:48]} 12...
h6 {[%clk 0:01:57.4]} 13. O-O-O {[%clk 0:02:42.3]} 13... b5 {[%clk 0:01:17.8]}
14. Nce5 {[%clk 0:02:39.8]} 14... Nxe5 {[%clk 0:01:18.2]} 15. dxe5 {[%clk
0:02:31.1]} 15... Qxa2 {[%clk 0:01:15.7]} 16. exf6 {[%clk 0:02:28.2]} 16... Qa1+
{[%clk 0:00:57.5]} 17. Kc2 {[%clk 0:02:26.1]} 17... Qa4+ {[%clk 0:00:58.1]} 18.
Kb1 {[%clk 0:02:25.6]} 18... b4 {[%clk 0:00:56]} 19. cxb4 {[%clk 0:02:22]} 19...
gxf6 {[%clk 0:00:55.3]} 20. Nd4 {[%clk 0:02:06.1]} 20... Qxb4 {[%clk 0:00:50.3]}
21. Qa6+ {[%clk 0:01:53]} 21... Qb7 {[%clk 0:00:47.2]} 22. Qxb7+ {[%clk
0:01:52.5]} 22... Kxb7 {[%clk 0:00:47.5]} 23. Kc2 {[%clk 0:01:53]} 23... Rd5
{[%clk 0:00:43.8]} 24. Ne2 {[%clk 0:01:46.2]} 24... Rc5+ {[%clk 0:00:43.2]} 25.
Nc3 {[%clk 0:01:46.1]} 25... h5 {[%clk 0:00:41.1]} 26. Rd4 {[%clk 0:01:41.1]}
26... Re5 {[%clk 0:00:30.1]} 27. Rb4+ {[%clk 0:01:33.5]} 27... Kc6 {[%clk
0:00:29]} 28. Ra1 {[%clk 0:01:23.1]} 28... a5 {[%clk 0:00:27.2]} 29. Rc4+ {[%clk
0:01:21.3]} 29... Kb6 {[%clk 0:00:26.4]} 30. b4 {[%clk 0:01:18.2]} 30... axb4
{[%clk 0:00:21.4]} 31. Rxb4+ {[%clk 0:01:18.3]} 31... Kc6 {[%clk 0:00:21.7]} 32.
Rc4+ {[%clk 0:01:09.5]} 32... Kd7 {[%clk 0:00:21.5]} 33. Ra7 {[%clk 0:01:02.3]}
33... Rc8 {[%clk 0:00:21.7]} 34. Ne4 {[%clk 0:00:56.7]} 34... f5 {[%clk
0:00:18.5]} 35. Nc3 {[%clk 0:00:55.9]} 35... Kd6 {[%clk 0:00:13.6]} 36. Kd2
{[%clk 0:00:51]} 36... f6 {[%clk 0:00:07.9]} 37. f4 {[%clk 0:00:45.1]} 37... Rc5
{[%clk 0:00:06.8]} 38. Ra6+ {[%clk 0:00:37.4]} 38... c6 {[%clk 0:00:05.7]} 39.
Rd4+ {[%clk 0:00:35.1]} 39... Kc7 {[%clk 0:00:05.8]} 40. Ra7+ {[%clk 0:00:32.3]}
40... Kb6 {[%clk 0:00:05.6]} 41. Rda4 {[%clk 0:00:28.1]} 41... Rd8+ {[%clk
0:00:04.4]} 42. Kc2 {[%clk 0:00:28.5]} 42... Rc4 {[%clk 0:00:04]} 43. Rxc4
{[%clk 0:00:25.8]} 43... Kxa7 {[%clk 0:00:04.5]} 44. Rxc6 {[%clk 0:00:26.1]}
44... Rg8 {[%clk 0:00:05.1]} 45. Ne2 {[%clk 0:00:23.2]} 45... e5 {[%clk
0:00:05.5]} 46. Rxf6 {[%clk 0:00:21.2]} 46... exf4 {[%clk 0:00:05.9]} 47. Nxf4
{[%clk 0:00:19]} 47... Rxg3 {[%clk 0:00:06]} 48. Rxf5 {[%clk 0:00:19.4]} 48...
h4 {[%clk 0:00:06.5]} 49. Kd2 {[%clk 0:00:19.5]} 49... Kb6 {[%clk 0:00:06.6]}
50. Ke2 {[%clk 0:00:19.8]} 50... Kc6 {[%clk 0:00:07.2]} 51. Kf2 {[%clk
0:00:20.2]} 51... Rg4 {[%clk 0:00:07.6]} 52. Ne2 {[%clk 0:00:17.9]} 52... Kd6
{[%clk 0:00:07.4]} 53. Rf4 {[%clk 0:00:18.2]} 53... Rg5 {[%clk 0:00:05]} 54.
Rxh4 {[%clk 0:00:17.8]} 54... Ke7 {[%clk 0:00:05.2]} 55. Rf4 {[%clk 0:00:18.1]}
55... Rg6 {[%clk 0:00:04.6]} 56. g3 {[%clk 0:00:18.7]} 56... Rb6 {[%clk
0:00:04.8]} 57. Kf3 {[%clk 0:00:19.2]} 57... Rb3+ {[%clk 0:00:04.7]} 58. Kf2
{[%clk 0:00:19.8]} 58... Rb2 {[%clk 0:00:05.3]} 59. Rf3 {[%clk 0:00:20.4]} 59...
Ke6 {[%clk 0:00:05.6]} 60. g4 {[%clk 0:00:20.7]} 60... Ke5 {[%clk 0:00:06.2]}
61. Rf5+ {[%clk 0:00:20]} 61... Ke4 {[%clk 0:00:06.1]} 62. Kf1 {[%clk
0:00:20.3]} 62... Rb1+ {[%clk 0:00:05.9]} 63. Kf2 {[%clk 0:00:20.2]} 63... Rb2
{[%clk 0:00:06.8]} 64. Rf3 {[%clk 0:00:20.4]} 64... Rb1 {[%clk 0:00:06.5]} 65.
Ng3+ {[%clk 0:00:20.3]} 65... Ke5 {[%clk 0:00:06.5]} 66. Kg2 {[%clk 0:00:20.7]}
66... Rb8 {[%clk 0:00:06.1]} 67. g5 {[%clk 0:00:20]} 67... Rg8 {[%clk
0:00:05.1]} 68. Rf5+ {[%clk 0:00:20.5]} 68... Ke6 {[%clk 0:00:05.8]} 69. Kf3
{[%clk 0:00:21]} 69... Ra8 {[%clk 0:00:05.7]} 70. Kg4 {[%clk 0:00:21.4]} 70...
Ra4+ {[%clk 0:00:06]} 71. Rf4 {[%clk 0:00:22]} 71... Ra3 {[%clk 0:00:06.1]} 72.
g6 {[%clk 0:00:22]} 72... Ra8 {[%clk 0:00:06.4]} 73. g7 {[%clk 0:00:22.1]} 73...
Rg8 {[%clk 0:00:06.7]} 74. Nh5 {[%clk 0:00:22.7]} 74... Ke7 {[%clk 0:00:06.9]}
75. Kg5 {[%clk 0:00:22.7]} 75... Ra8 {[%clk 0:00:07]} 76. Kg6 {[%clk 0:00:21.7]}
76... Ke6 {[%clk 0:00:04.7]} 77. Rf8 {[%clk 0:00:20.8]} 77... Ra1 {[%clk
0:00:04.2]} 78. g8=Q+ {[%clk 0:00:20.6]} 78... Ke7 {[%clk 0:00:05]} 79. Qg7+
{[%clk 0:00:20.7]} 79... Kd6 {[%clk 0:00:05.9]} 80. Qxa1 {[%clk 0:00:20.8]}
80... Ke7 {[%clk 0:00:05.5]} 81. Qf6+ {[%clk 0:00:20.6]} 81... Kd7 {[%clk
0:00:06.4]} 82. Rd8+ {[%clk 0:00:21.2]} 1-0